bitfinex/quotes_ETHUSD_20250318
["timestamp","ask_amount","ask_price","bid_price","bid_amount"]
[1742307404480,7.73457052,1890.0,1889.9,5.29128]
[1742307404683,4.73457052,1890.0,1889.9,5.29128]
[1742307406564,4.73457052,1890.0,1889.8,5.29156]
[1742307406768,5.24805564,1890.0,1889.7,5.29172]
[1742307407062,4.73457052,1889.8,1889.7,5.29172]
[1742307407469,4.73457052,1889.9,1889.8,5.29156]
[1742307407777,7.73457052,1890.0,1889.9,5.29117]
[1742307408903,3.0,1890.0,1889.9,6.05127]
[1742307409122,3.0,1890.0,1889.9,7.185542]
[1742307409831,7.82112333,1890.0,1889.9,6.425442]
[1742307409979,3.0,1889.9,1889.7,10.58346]
[1742307410175,3.0,1889.7,1889.6,5.763]
[1742307410381,3.0,1889.7,1889.6,11.05501]
[1742307410591,3.08672628,1889.7,1889.6,11.05501]
[1742307411216,3.08672628,1889.7,1889.6,12.689749]
[1742307411421,3.08672628,1889.7,1889.6,6.926749]
[1742307411586,3.08672628,1889.7,1889.6,11.05401]
[1742307411784,3.08672628,1889.7,1889.6,5.29201]
[1742307412024,3.08672628,1889.7,1889.5,10.58459]
[1742307412232,3.08672628,1889.7,1888.9,22.80894]
[1742307412233,3.0,1889.5,1889.1,11.05538]
[1742307412432,7.73457052,1889.2,1889.1,5.29334]
[1742307412790,3.0,1889.2,1889.1,6.11444]
[1742307412983,3.08672628,1889.2,1889.1,6.11444]
[1742307413220,3.0,1889.2,1889.1,6.11444]
[1742307413541,0.5227,1889.8,1889.6,5.29203]
[1742307413834,0.5227,1889.8,1889.7,5.29184]
[1742307414036,7.73457052,1889.8,1889.7,5.29184]
[1742307414587,4.73457052,1889.9,1889.8,5.29156]
[1742307415018,3.0,1889.9,1889.8,11.05256]
[1742307415218,7.73457052,1889.9,1889.8,11.05256]
[1742307415839,8.25727052,1889.9,1889.8,11.05256]
[1742307416424,3.0,1889.7,1889.6,5.29211]
[1742307416710,7.73457052,1889.7,1889.6,5.29211]
[1742307416951,0.5227,1889.9,1889.8,5.29156]
[1742307417111,4.73457052,1889.9,1889.8,5.29156]
[1742307417310,7.73457052,1889.9,1889.8,5.29156]
[1742307418040,8.50802757,1889.9,1889.7,5.29173]
[1742307418609,0.5227,1889.7,1889.5,5.29225]
[1742307418809,3.0,1889.6,1889.5,5.29225]
[1742307419742,3.0,1889.6,1889.4,5.29257]
[1742307419947,7.73457052,1889.5,1889.4,5.29251]
[1742307420247,7.73457052,1889.5,1889.3,22.80085]
[1742307420551,7.73457052,1889.5,1889.3,17.508]
[1742307420726,0.5227,1889.3,1889.1,5.29334]
[1742307420929,3.0,1889.2,1888.9,5.759]
[1742307421250,5.25727052,1889.3,1888.7,5.29443]
[1742307421251,0.5227,1888.9,1888.7,5.29443]
[1742307421452,3.0,1888.7,1888.5,5.29516]
[1742307421751,5.844108,1888.4,1888.2,5.29593]
[1742307421921,3.0,1888.2,1888.1,5.29619]
[1742307422437,3.0,1888.2,1887.8,5.29706]
[1742307422438,7.73457052,1888.2,1887.8,5.29706]
[1742307422637,7.73457052,1887.9,1887.8,5.29717]
[1742307423181,3.0,1887.8,1887.5,5.29782]
[1742307423320,3.0,1887.7,1887.6,5.29772]
[1742307423521,3.0,1887.7,1887.5,5.29782]
[1742307423824,3.5227,1888.0,1887.8,5.29699]
[1742307424158,3.5227,1888.0,1887.9,5.29689]
[1742307424918,0.55,1888.3,1888.1,5.29614]
[1742307425118,3.0,1888.3,1888.2,5.29604]
[1742307425319,3.0,1888.3,1888.0,5.759]
[1742307425545,3.0,1888.3,1888.0,5.2966]
[1742307425751,3.0,1888.3,1888.0,10.59299]
[1742307425953,3.0,1888.3,1888.0,5.29639]
[1742307426120,3.0,1888.3,1887.9,11.05588]
[1742307426321,3.0,1888.3,1887.9,5.759]
[1742307426536,0.55,1888.2,1887.9,11.05583]
[1742307426722,0.55,1888.2,1887.9,16.35251]
[1742307427054,0.55,1888.2,1888.0,5.2966]
[1742307427237,3.0,1888.3,1888.1,5.29613]
[1742307427449,3.0,1888.3,1888.0,5.29655]
[1742307427648,3.91548636,1888.3,1888.1,5.29621]
[1742307428238,3.0,1888.3,1888.1,5.29621]
[1742307428554,3.0,1888.3,1888.2,5.29604]
[1742307429073,8.60486355,1888.4,1888.3,5.29576]
[1742307429281,5.60486355,1888.4,1888.3,5.29576]
[1742307429438,2.14109692,1888.6,1888.3,5.29559]
[1742307429642,3.0,1888.6,1888.5,5.2952]
[1742307429944,3.0,1888.6,1888.2,5.29578]
[1742307430261,3.0,1888.6,1888.4,5.29537]
[1742307430461,0.5227,1888.4,1888.1,5.29618]
[1742307430635,5.60486355,1888.4,1888.1,5.29618]
[1742307430836,3.0,1888.3,1887.9,28.57364]
[1742307431147,3.0,1888.3,1888.1,5.29621]
[1742307431656,5.60486355,1888.4,1888.2,5.29604]
[1742307431860,5.08216355,1888.4,1888.3,5.29576]
[1742307432177,3.0,1888.6,1888.4,5.29537]
[1742307432358,3.0,1888.6,1888.4,5.29529]
[1742307432536,5.99783285,1888.7,1888.6,5.29492]
[1742307432873,5.08216355,1888.7,1888.6,5.29492]
[1742307433853,5.08216355,1888.7,1888.5,5.29508]
[1742307434179,5.98736119,1888.7,1888.5,5.29508]
[1742307434488,5.47914484,1888.7,1888.6,5.29492]
[1742307434645,5.47914484,1888.7,1888.5,5.29508]
[1742307434855,5.47914484,1888.7,1888.4,5.29548]
[1742307435041,0.55,1888.6,1888.2,5.29579]
[1742307435243,5.08216355,1888.4,1888.2,5.29579]
[1742307435492,5.08216355,1888.4,1888.3,5.29576]
[1742307435788,5.08216355,1888.4,1888.2,5.29579]
[1742307436151,13.93823991,1888.4,1888.0,11.05647]
[1742307436370,8.64264991,1888.4,1888.1,5.2961]
[1742307436681,8.64264991,1888.4,1888.1,10.59229]
[1742307436883,8.64264991,1888.4,1888.2,5.29591]
[1742307437038,3.0,1888.2,1888.1,5.29621]
[1742307437239,3.0,1888.3,1888.1,5.2961]
[1742307437546,3.0,1888.3,1888.2,5.29604]
[1742307437744,8.08216355,1888.4,1888.3,5.29576]
[1742307437961,3.0,1888.3,1888.2,5.29604]
[1742307438237,2.50849,1888.2,1888.0,11.05649]
[1742307438443,3.0,1888.0,1887.9,5.29688]
[1742307438654,3.0,1887.8,1887.5,5.29788]
[1742307438853,3.0,1887.5,1887.3,5.29835]
[1742307439089,8.08216355,1887.5,1887.2,5.29876]
[1742307439293,9.2301101,1887.5,1887.2,5.29874]
[1742307439496,8.96693755,1887.5,1887.3,5.29841]
[1742307439667,14.26500755,1887.5,1887.2,5.29882]
[1742307439870,6.72481076,1887.4,1887.1,5.29906]
[1742307440072,5.08216355,1887.2,1887.0,10.59856]
[1742307440399,5.08216355,1887.2,1887.0,5.29923]
[1742307440588,8.47595943,1887.2,1887.1,5.29913]
[1742307441405,3.0,1887.2,1887.1,5.29913]
[1742307442192,3.0,1887.1,1886.9,17.52]
[1742307442425,3.5227,1887.1,1886.9,5.29965]
[1742307442698,5.49009449,1887.2,1886.9,5.29967]
[1742307442859,0.54900945,1887.1,1886.9,5.29967]
[1742307443059,3.0,1887.1,1886.9,5.29967]
[1742307443460,3.0,1887.1,1886.9,5.29946]
[1742307443694,3.0,1887.1,1886.9,5.29959]
[1742307444300,3.0,1887.1,1886.8,10.59979]
[1742307444499,3.0,1887.1,1886.9,5.29961]
[1742307444707,3.0,1887.1,1886.9,10.59905]
[1742307444904,3.0,1887.1,1887.0,5.29941]
[1742307445113,4.74461958,1887.2,1887.1,5.29913]
[1742307445783,8.15247083,1887.4,1887.3,5.29857]
[1742307445978,7.74461958,1887.4,1887.3,5.29857]
[1742307446171,4.74461958,1887.4,1887.2,5.29864]
[1742307446503,4.74461958,1887.4,1887.3,5.29857]
[1742307446874,5.21908154,1887.4,1887.0,6.5787]
[1742307447217,0.08202392,1887.4,1887.2,10.59729]
[1742307447567,0.47158462,1887.4,1887.3,5.29857]
[1742307447803,0.08202392,1887.4,1887.1,5.29912]
[1742307448104,0.08202392,1887.4,1887.2,5.29882]
[1742307448407,7.74461958,1887.3,1887.2,5.29882]
[1742307449494,7.74461958,1887.3,1887.1,5.29905]
[1742307449495,3.0,1887.2,1886.9,10.59892]
[1742307449809,7.74461958,1887.0,1886.8,5.29982]
[1742307450324,4.74461958,1887.0,1886.9,5.29969]
[1742307452219,4.74461958,1887.0,1886.8,5.29975]
[1742307452519,5.21908154,1887.0,1886.8,5.29975]
[1742307452891,5.21908154,1887.0,1886.8,10.59953]
[1742307453110,4.74461958,1887.0,1886.9,5.29969]
[1742307455326,5.29461958,1887.0,1886.8,5.29975]
[1742307455686,5.29461958,1887.0,1886.7,10.60029]
[1742307455994,4.74461958,1886.8,1886.7,5.30007]
[1742307456403,13.51920154,1886.8,1886.4,5.30089]
[1742307456589,4.74461958,1886.5,1886.4,5.3011]
[1742307456795,7.74461958,1886.8,1886.7,5.30025]
[1742307457527,7.74461958,1887.0,1886.9,5.29969]
[1742307457685,7.74461958,1887.0,1886.9,6.11449]
[1742307458330,7.74461958,1887.0,1886.9,5.29969]
[1742307460190,3.0,1887.0,1886.9,5.29969]
[1742307460525,7.74461958,1887.0,1886.9,5.29969]
[1742307462227,7.82469317,1887.0,1886.9,5.29969]
[1742307462897,8.65943249,1887.0,1886.8,5.2999]
[1742307463102,2.629761,1886.8,1886.6,5.30032]
[1742307463334,4.74461958,1886.8,1886.6,5.30032]
[1742307463491,4.74461958,1886.8,1886.7,5.30025]
[1742307463923,8.51908154,1886.8,1886.7,5.30025]
[1742307464095,7.74461958,1886.8,1886.7,5.30025]
[1742307464930,3.0,1886.8,1886.7,5.30025]
[1742307466148,0.5227,1886.7,1886.6,5.30032]
[1742307466350,5.26731958,1886.7,1886.5,5.30066]
[1742307466656,5.26731958,1886.7,1886.6,5.30054]
[1742307467266,5.26731958,1886.7,1886.4,5.30106]
[1742307467267,9.09405154,1886.7,1886.4,5.30106]
[1742307467427,4.74461958,1886.5,1886.4,5.30106]
[1742307467628,3.0,1886.4,1885.9,11.0615]
[1742307467857,7.74461958,1886.1,1886.0,5.30222]
[1742307468366,7.74461958,1886.1,1886.0,5.79830857]
[1742307469564,7.74461958,1886.1,1886.0,5.30222]
[1742307469927,8.13323919,1886.1,1886.0,5.30222]
[1742307471664,9.49656311,1886.1,1885.9,5.30236]
[1742307471872,3.55,1886.0,1885.8,5.79848252]
[1742307472176,4.74461958,1885.9,1885.8,5.79848252]
[1742307472340,5.26731958,1885.9,1885.8,0.49579252]
[1742307472666,9.69905154,1885.9,1885.7,5.30305]
[1742307472860,9.69905154,1885.9,1885.7,10.60596]
[1742307473025,9.69905154,1885.9,1885.7,5.30291]
[1742307473230,9.69905154,1885.9,1885.7,10.60586]
[1742307473426,9.69905154,1885.9,1885.7,10.60582]
[1742307473631,8.81731958,1885.9,1885.8,5.30278]
[1742307474163,7.74461958,1885.9,1885.8,5.30278]
[1742307474977,3.0,1885.9,1885.8,5.30278]
[1742307475466,3.0,1885.9,1885.8,6.11828]
[1742307476054,4.74461958,1886.3,1886.2,5.30166]
[1742307477145,4.82281533,1886.3,1886.2,5.30166]
[1742307477536,4.74461958,1886.3,1886.2,7.187309]
[1742307477850,4.82281533,1886.3,1886.2,7.187309]
[1742307478050,7.82281533,1886.3,1886.2,7.187309]
[1742307478251,0.07819575,1886.3,1886.2,7.187309]
[1742307478450,4.74461958,1886.5,1886.4,5.3011]
[1742307478642,4.8223925,1886.5,1886.4,5.3011]
[1742307478844,0.07777292,1886.5,1886.4,6.361336]
[1742307479055,4.74461958,1886.7,1886.6,5.30054]
[1742307479256,4.8223925,1886.7,1886.6,5.30054]
[1742307479453,4.8223925,1886.7,1886.3,5.30129]
[1742307479670,4.74461958,1886.4,1886.3,5.30129]
[1742307479841,13.01597112,1886.4,1886.1,5.30193]
[1742307480036,13.01597112,1886.4,1886.0,5.30212]
[1742307480037,4.74461958,1886.2,1886.0,5.30212]
[1742307480263,3.0,1886.1,1885.9,10.6048]
[1742307480454,7.74461958,1886.0,1885.9,5.3023]
[1742307480849,7.8223925,1886.0,1885.8,5.30267]
[1742307481050,4.8223925,1886.0,1885.9,5.3025]
[1742307482269,5.23060702,1886.0,1885.9,5.3025]
[1742307482781,4.8223925,1886.0,1885.9,6.893284]
[1742307482958,7.8223925,1886.0,1885.9,6.893284]
[1742307483282,7.8223925,1886.0,1885.9,5.3025]
[1742307484186,3.07777292,1886.0,1885.9,6.1048]
[1742307484347,7.8223925,1886.0,1885.9,6.1048]
[1742307484678,7.74461958,1886.0,1885.9,5.3025]
[1742307484844,7.8223925,1886.0,1885.9,5.3025]
[1742307485687,7.8223925,1886.0,1885.5,5.30348]
[1742307485688,3.0,1885.9,1885.6,5.30316]
[1742307485919,3.0,1885.9,1885.7,5.30302]
[1742307486064,0.5227,1885.8,1885.4,5.30389]
[1742307486262,0.5227,1885.8,1885.4,5.30371]
[1742307486263,0.62777292,1885.7,1885.4,5.30371]
[1742307486767,3.0,1885.5,1885.3,5.30406]
[1742307486972,0.55,1885.4,1885.1,5.31471]
[1742307487172,3.0,1885.2,1885.1,0.01]
[1742307487368,3.0,1885.2,1885.1,5.31475]
[1742307487588,3.0,1885.2,1885.1,0.01]
[1742307487791,3.07777292,1885.2,1885.1,0.01]
[1742307488099,3.62777292,1885.2,1885.1,0.01]
[1742307488609,4.91105997,1885.2,1885.1,0.01]
[1742307488762,3.47155072,1885.2,1885.1,5.31475]
[1742307488962,3.07777292,1885.2,1885.1,5.31475]
[1742307489160,2.92e-06,1885.2,1885.1,11.84385]
[1742307489402,4.74461958,1885.6,1885.5,5.30363]
[1742307489603,4.74461958,1885.6,1885.4,5.3038]
[1742307489604,7.02209158,1885.5,1885.4,5.30391]
[1742307489770,3.0,1885.5,1885.4,5.30391]
[1742307489970,4.74461958,1885.6,1885.5,5.30363]
[1742307490169,4.74461958,1885.6,1885.4,40.30391]
[1742307490386,4.74461958,1885.6,1885.5,5.30363]
[1742307491097,4.74461958,1885.6,1885.4,40.30369]
[1742307491098,7.74461958,1885.7,1885.6,5.3032]
[1742307491870,7.74461958,1885.7,1885.6,5.30335]
[1742307492079,4.74461958,1885.8,1885.7,5.30307]
[1742307492298,4.74461958,1885.9,1885.8,5.30278]
[1742307493165,7.74461958,1886.1,1886.0,5.30222]
[1742307493588,7.74461958,1886.1,1885.9,10.60471]
[1742307493811,7.74461958,1886.1,1886.0,5.30222]
[1742307495419,3.5227,1885.9,1885.8,5.30275]
[1742307495719,4.74461958,1885.9,1885.8,5.30275]
[1742307496601,4.74461958,1885.9,1885.8,6.09365]
[1742307497113,4.81921689,1885.9,1885.8,6.09365]
[1742307497811,0.07459731,1885.9,1885.8,6.09365]
[1742307498106,0.07459731,1885.9,1885.8,12.990319]
[1742307498274,4.74461958,1886.4,1886.2,0.8194]
[1742307498475,4.74461958,1886.4,1886.3,5.30138]
[1742307498752,8.14948401,1886.4,1886.3,5.30138]
[1742307498906,0.55,1886.3,1885.9,0.8194]
[1742307499173,0.6222184,1886.3,1886.2,5.30157]
[1742307499411,0.92756443,1886.4,1886.2,5.30148]
[1742307499724,0.40486443,1886.4,1886.3,5.30138]
[1742307499875,0.5227,1886.6,1886.4,5.30083]
[1742307500071,0.5227,1886.9,1886.6,5.30042]
[1742307500273,10.03276349,1886.9,1886.5,5.30082]
[1742307500506,4.73294349,1886.9,1886.6,5.30033]
[1742307500804,1.06220095,1886.7,1886.5,5.30078]
[1742307501005,7.74461958,1886.6,1886.5,5.30078]
[1742307501209,8.14673281,1886.6,1886.5,5.30078]
[1742307501376,9.06762619,1886.6,1886.5,5.30078]
[1742307502224,9.06762619,1886.6,1886.4,5.30099]
[1742307502373,3.0,1886.4,1886.3,5.30133]
[1742307502597,4.74461958,1886.4,1886.2,5.30165]
[1742307502950,9.37426,1886.3,1885.9,5.30246]
[1742307503238,7.74461958,1886.0,1885.9,5.30229]
[1742307503404,4.74461958,1886.0,1885.9,5.30229]
[1742307503601,3.82673196,1886.4,1886.2,5.30166]
[1742307503831,7.74461958,1886.3,1886.2,5.30166]
[1742307504039,8.51908154,1886.3,1886.1,5.30183]
[1742307504240,8.51908154,1886.3,1886.1,5.30173]
[1742307504407,7.74461958,1886.3,1886.2,5.30166]
[1742307505101,4.74461958,1886.4,1886.3,5.30127]
[1742307505335,4.74461958,1886.4,1886.2,5.30166]
[1742307505545,4.81452358,1886.4,1886.2,5.30153]
[1742307506037,4.81452358,1886.4,1886.3,5.30138]
[1742307506266,8.59597594,1886.4,1886.2,10.60303]
[1742307506543,8.59597594,1886.4,1886.3,5.30138]
[1742307507040,7.81452358,1886.4,1886.3,5.30138]
[1742307507198,7.81452358,1886.4,1886.3,6.07788]
[1742307507403,3.069904,1886.4,1886.3,6.07788]
[1742307507600,0.069904,1886.4,1886.3,6.07788]
[1742307507832,0.069904,1886.4,1886.3,11.83188]
[1742307508017,8.14673281,1886.6,1886.5,5.30082]
[1742307508781,3.0,1886.6,1886.5,5.30082]
[1742307509655,3.39590342,1886.6,1886.5,5.30082]
[1742307509950,3.0,1886.5,1886.4,5.30098]
[1742307510150,7.74461958,1886.5,1886.3,5.30117]
[1742307510465,7.74461958,1886.5,1886.4,5.3011]
[1742307510608,3.0,1886.5,1886.4,5.3011]
[1742307511204,3.8140523,1886.5,1886.4,5.3011]
[1742307511605,3.0,1886.5,1886.4,6.0698]
[1742307513527,3.0,1886.7,1886.6,5.30042]
[1742307513744,4.74461958,1886.8,1886.7,5.30025]
[1742307514151,7.74461958,1886.8,1886.7,5.30025]
[1742307514757,0.60472392,1887.4,1886.7,0.8115]
[1742307515085,4.8266435,1887.4,1887.3,5.29857]
[1742307515427,3.0,1887.3,1887.0,11.05139]
[1742307515668,0.08202392,1887.4,1887.1,5.29897]
[1742307515872,4.74461958,1887.2,1887.1,5.29897]
[1742307516227,7.74461958,1887.2,1887.1,5.29897]
[1742307516426,5.51908154,1887.2,1887.1,5.29897]
[1742307516625,5.51908154,1887.2,1886.7,0.8092]
[1742307516856,4.74461958,1886.8,1886.6,11.05245]
[1742307517059,7.74461958,1887.0,1886.9,5.29948]
[1742307517262,7.74461958,1887.0,1886.8,5.29997]
[1742307517441,5.51908154,1886.9,1886.8,10.59982]
[1742307517770,5.51908154,1886.9,1886.8,5.29985]
[1742307519236,5.91336119,1886.9,1886.8,5.29985]
[1742307519638,4.74461958,1886.9,1886.7,5.30024]
[1742307519962,7.74461958,1886.9,1886.6,5.3005]
[1742307520163,3.0,1886.6,1886.4,5.30108]
[1742307520352,7.74461958,1886.5,1886.4,10.60216]
[1742307520663,3.0,1886.5,1886.4,10.60216]
[1742307520850,3.0,1886.5,1886.4,11.40436]
[1742307521347,3.0,1886.7,1886.6,5.30054]
[1742307522145,3.07153314,1886.7,1886.6,5.30054]
[1742307522572,3.85314841,1886.7,1886.6,5.30054]
[1742307522937,3.07153314,1886.7,1886.6,5.30054]
[1742307523440,0.07153314,1886.7,1886.6,6.11704148]
[1742307523629,0.06902633,1886.7,1886.6,6.06404]
[1742307523831,4.74461958,1887.2,1887.1,5.29913]
[1742307524257,4.81075602,1887.2,1887.1,5.29913]
[1742307524445,8.29183162,1887.2,1887.1,5.29913]
[1742307524660,8.29183162,1887.2,1887.0,10.59865]
[1742307524841,8.29183162,1887.2,1887.1,5.29913]
[1742307525781,8.29183162,1887.2,1887.0,5.29926]
[1742307525983,8.29183162,1887.2,1887.1,5.29913]
[1742307526374,4.81075602,1887.2,1887.1,5.29913]
[1742307527662,4.81075602,1887.2,1886.9,5.29954]
[1742307527858,4.74461958,1887.0,1886.9,5.29954]
[1742307528061,10.04415958,1887.0,1886.7,5.30004]
[1742307528274,4.74461958,1886.8,1886.6,5.30052]
[1742307528645,4.74461958,1886.8,1886.7,5.30025]
[1742307529046,7.74461958,1887.0,1886.9,5.29969]
[1742307529272,3.0,1887.0,1886.9,5.29969]
[1742307529852,4.74461958,1887.3,1887.2,5.29885]
[1742307530046,7.74461958,1887.3,1887.2,5.29885]
[1742307530462,5.56749288,1887.3,1887.1,10.59799]
[1742307530670,3.0,1887.2,1887.1,5.29897]
[1742307530890,4.74461958,1887.3,1887.2,5.29885]
[1742307531379,4.81091783,1887.3,1887.2,5.29885]
[1742307532007,4.81091783,1887.3,1887.2,6.09485]
[1742307532613,4.81091783,1887.3,1887.2,5.29885]
[1742307534369,0.06629825,1887.3,1887.2,5.29885]
[1742307534617,0.06629825,1887.3,1887.2,7.129632]
[1742307534767,0.06629825,1887.3,1887.2,42.129632]
[1742307534972,0.08202392,1887.4,1887.3,5.29857]
[1742307535171,0.08202392,1887.4,1887.3,11.0995498]
[1742307535369,0.08202392,1887.4,1887.3,11.04657]
[1742307535569,0.08202392,1887.4,1887.3,16.28477749]
[1742307537034,3.08202392,1887.4,1887.3,11.04657]
[1742307537232,3.08202392,1887.4,1887.0,6.06315]
[1742307537371,7.74461958,1887.1,1886.7,6.06415]
[1742307537712,7.74461958,1886.8,1886.7,5.30025]
[1742307538082,4.81252282,1886.8,1886.6,5.30053]
[1742307538395,4.81252282,1886.8,1886.5,10.60146]
[1742307538396,0.77446196,1886.7,1886.5,10.60146]
[1742307538712,7.74461958,1886.6,1886.5,5.30065]
[1742307538911,7.74461958,1886.6,1886.4,5.30102]
[1742307539095,7.74461958,1886.6,1886.5,5.30082]
[1742307539298,8.63696231,1886.6,1886.4,5.30091]
[1742307539482,8.7043804,1886.6,1886.4,5.30091]
[1742307539810,8.7043804,1886.6,1886.2,5.30164]
[1742307539811,3.0,1886.5,1886.2,5.30155]
[1742307540015,7.74461958,1886.3,1886.2,5.30166]
[1742307540231,7.74461958,1886.3,1886.0,22.8352]
[1742307540532,7.74461958,1886.1,1885.9,5.30228]
[1742307540838,7.74461958,1886.1,1886.0,5.30222]
[1742307541626,4.74461958,1886.1,1886.0,5.30222]
[1742307542025,4.74461958,1886.3,1886.1,5.30194]
[1742307542194,4.74461958,1886.3,1886.2,5.30166]
[1742307542834,13.76461958,1886.5,1886.4,5.3011]
[1742307543326,3.0,1886.4,1886.1,5.30188]
[1742307543492,4.74461958,1886.2,1886.0,5.30203]
[1742307543693,4.74461958,1886.2,1885.8,5.30262]
[1742307543694,3.0,1886.1,1885.8,5.30262]
[1742307543901,7.74461958,1885.9,1885.8,5.30262]
[1742307545134,3.0,1885.9,1885.8,5.30262]
[1742307545317,3.0,1885.9,1885.8,6.363181]
[1742307546841,7.74461958,1886.3,1886.2,5.30166]
[1742307547337,7.31716196,1886.7,1886.4,5.3011]
[1742307547338,4.74461958,1886.5,1886.4,5.3011]
[1742307547741,4.74461958,1886.5,1886.3,5.30117]
[1742307547942,10.04558958,1886.5,1886.1,5.30175]
[1742307548257,3.0,1886.1,1885.9,5.30223]
[1742307548432,7.74461958,1886.0,1885.9,5.30223]
[1742307550234,3.0,1886.0,1885.9,5.30223]
[1742307550633,3.0,1886.0,1885.9,6.362731]
[1742307552033,7.74461958,1886.0,1885.9,5.30223]
[1742307552229,3.06259276,1886.0,1885.9,5.30223]
[1742307552758,3.0,1886.0,1885.9,6.05583]
[1742307553141,0.38887145,1886.5,1886.3,5.30138]
[1742307553455,4.74461958,1886.6,1886.5,5.30082]
[1742307553753,4.74461958,1886.6,1886.4,5.30099]
[1742307553961,5.21908154,1886.6,1886.4,5.30099]
[1742307554324,5.61892578,1886.6,1886.4,5.30099]
[1742307554640,0.39984424,1886.6,1886.4,10.60192]
[1742307554957,7.74461958,1886.6,1886.5,5.30082]
[1742307555170,4.74461958,1886.8,1886.7,5.30025]
[1742307555368,5.26731958,1887.3,1886.8,5.29987]
[1742307555521,10.59805,1887.2,1886.8,5.29987]
[1742307555722,1.06221127,1887.1,1886.9,5.29966]
[1742307555963,4.06221127,1887.1,1886.9,10.59919]
[1742307556166,3.0,1887.2,1887.0,5.29941]
[1742307556367,0.86563594,1887.2,1886.7,5.30023]
[1742307556656,4.74461958,1887.0,1886.9,5.29969]
[1742307557725,4.74461958,1887.0,1886.8,5.29997]
[1742307558120,4.74461958,1887.0,1886.7,5.30023]
[1742307558364,7.74461958,1886.8,1886.7,5.30023]
[1742307558857,3.0,1886.7,1886.6,5.30051]
[1742307559033,5.15293439,1886.8,1886.6,10.60093]
[1742307559233,3.0,1886.7,1886.6,5.30042]
[1742307559947,4.74461958,1886.8,1886.7,5.30025]
[1742307560748,5.15217714,1886.8,1886.7,5.30025]
[1742307560953,4.74461958,1886.8,1886.7,5.30025]
[1742307562265,3.0,1886.7,1886.4,0.7965]
[1742307562435,3.0,1886.7,1886.6,11.04554]
[1742307562646,7.74461958,1886.7,1886.2,5.30162]
[1742307562853,4.74461958,1886.3,1886.2,5.30166]
[1742307564182,3.0,1886.4,1886.3,5.30138]
[1742307564768,3.0,1886.6,1886.5,5.30082]
[1742307564968,7.74461958,1886.6,1886.5,5.30082]
[1742307565980,3.0,1886.5,1886.4,5.30099]
[1742307566169,4.74461958,1886.6,1886.4,10.60196]
[1742307566398,4.74461958,1886.6,1886.4,5.30097]
[1742307566682,3.0,1886.5,1886.3,5.3012]
[1742307566885,7.74461958,1886.4,1886.1,28.58585]
[1742307567071,7.74461958,1886.2,1886.0,5.30208]
[1742307567244,4.74461958,1886.2,1886.0,10.60416]
[1742307567568,7.74461958,1886.2,1886.1,5.30194]
[1742307568079,7.74461958,1886.2,1886.1,6.362342]
[1742307568382,3.0,1886.2,1886.1,6.362342]
[1742307568544,3.0,1886.2,1886.1,5.30194]
[1742307569146,3.0,1886.2,1886.0,11.04508]
[1742307569381,4.74461958,1886.1,1886.0,5.30208]
[1742307569600,7.74461958,1886.1,1886.0,5.30208]
[1742307569793,3.0,1886.0,1885.7,5.30289]
[1742307569991,3.0,1885.6,1885.5,5.30351]
[1742307570177,3.0,1885.7,1885.6,5.30335]
[1742307570376,3.0,1885.7,1885.3,5.30393]
[1742307570551,7.74461958,1885.4,1885.3,5.834323]
[1742307570899,3.0,1885.3,1885.1,0.01]
[1742307571107,3.5227,1884.8,1884.4,5.30655]
[1742307571253,3.5227,1884.8,1884.4,5.30672]
[1742307571254,4.74461958,1884.5,1884.4,5.30672]
[1742307571455,7.74461958,1884.5,1884.4,6.368073]
[1742307571654,3.0,1884.5,1884.4,6.368073]
[1742307572255,7.74461958,1884.8,1884.7,5.30588]
[1742307572496,3.0,1884.8,1884.7,5.30588]
[1742307573062,4.74461958,1884.9,1884.7,5.30588]
[1742307573063,3.0,1884.9,1884.8,5.3056]
[1742307574197,7.74461958,1884.9,1884.8,5.3056]
[1742307574407,7.74461958,1884.9,1884.4,12.527853]
[1742307574408,3.0,1884.8,1884.4,5.30665]
[1742307574574,7.74461958,1884.5,1884.4,5.30661]
[1742307575580,7.74461958,1884.5,1884.4,12.112963]
[1742307575995,7.74461958,1884.5,1884.4,11.05161]
[1742307576196,7.74461958,1884.5,1884.4,5.30661]
[1742307579216,4.74461958,1884.5,1884.4,5.30661]
[1742307579588,0.39272259,1884.6,1884.5,5.30644]
[1742307579805,4.74461958,1884.7,1884.4,10.6132]
[1742307579973,4.74461958,1884.5,1884.4,5.30659]
[1742307580173,5.26731958,1884.5,1884.2,5.30715]
[1742307580422,7.74461958,1884.3,1884.1,5.30741]
[1742307580883,7.74461958,1884.3,1884.2,5.30729]
[1742307581288,7.74461958,1884.3,1884.1,5.30741]
[1742307581692,3.0,1884.2,1884.1,10.61475]
[1742307581904,4.74461958,1884.3,1884.2,5.30729]
[1742307582178,7.74461958,1884.3,1884.2,5.30729]
[1742307582922,3.0,1884.3,1884.2,5.30729]
[1742307583337,3.0,1884.3,1884.2,6.12009]
[1742307583625,0.39810755,1884.6,1884.5,5.30644]
[1742307583777,4.74461958,1884.8,1884.7,5.30588]
[1742307583977,7.74461958,1884.8,1884.7,5.30588]
[1742307584428,4.74461958,1884.8,1884.7,5.30588]
[1742307584629,10.76461958,1885.0,1884.9,5.30532]
[1742307584915,7.74461958,1885.0,1884.9,5.30532]
[1742307585081,8.14017336,1885.0,1884.9,5.30532]
[1742307585624,4.74461958,1885.0,1884.9,5.30532]
[1742307585779,7.74461958,1885.2,1885.1,5.30475]
[1742307586123,4.74461958,1885.2,1885.1,5.30475]
[1742307586489,5.91350756,1885.2,1885.1,5.30475]
[1742307586887,8.91350756,1885.2,1885.1,5.30475]
[1742307587087,5.1390456,1885.2,1885.1,5.30475]